Cogmind - Beta 14 @@@ ROGUE MODE // 2024.08.11 @ 06:29:39 Player: Trione Result: Destroyed by Triborg with Siege Cannon Performance ------------- Evolutions (3) 1500 Regions Visited (9) 1800 Robots Destroyed (174) 870 Value Destroyed (4705) 4705 Prototype IDs (9) 180 Alien Tech Used (0) 0 Bonus (492) 492 TOTAL SCORE: 9547 Bonus ------- High Alert Combat Kills 492 Cogmind --------- Core Integrity 0/700 Matter 120/300 Energy 32/300 System Corruption 1% Temperature Cool (8) Movement Core (1600) Ox31 Location -7/Scraptown Parts ------- > --- POWER (1) -------- Enhanced Nuclear Core > --- PROPULSION (4) --- (None) > --- UTILITY (5) ------ Huge Storage Unit Improved Signal Interpreter > --- WEAPON (3) ------- Heavy Ion Cannon > --- INVENTORY (25) --- Armored Treads Scrap Suit Improved Heat Sink High-capacity Matter Pod (200) High-capacity Matter Pod (200) Experimental Sensor Array Transport Network Coupler Transmission Jammer Hacking Suite High-powered Tractor Beam Missile Launcher Precision Grenade Launcher Precision Grenade Launcher Datajack Impact Mace Peak State ------------ > --- POWER ------------ Enhanced Nuclear Core > --- PROPULSION ------- Armored Treads Medium Treads Wheel Compact Wheel > --- UTILITY ---------- Improved Heat Sink Huge Storage Unit Experimental Sensor Array Improved Signal Interpreter Hacking Suite > --- WEAPON ----------- Plasma Cannon Plasma Cannon Heavy Ion Cannon > --- INVENTORY -------- Enhanced Nuclear Core Light Treads Medium Treads Medium Treads Medium Treads Wheel Improved Heat Sink Cooling System High-capacity Matter Pod High-capacity Matter Pod Seismic Detector Hardened Medium Armor Plating Hardened Medium Armor Plating Reflective Plating Hacking Suite Heavy EM Shotgun Heavy EM Shotgun Flak Gun Assault Cannon Advanced Assault Cannon Missile Launcher Missile Launcher Precision Grenade Launcher Precision Grenade Launcher Impact Mace [Rating: 52] Favorites ----------- Power Enhanced Nuclear Core Engine Light Deuterium Engine Power Core Enhanced Nuclear Core Propulsion Compact Wheel Treads Light Treads Wheel Compact Wheel Utility Huge Storage Unit Device Cooling System Storage Huge Storage Unit Processor Improved Signal Interpreter Hackware Hacking Suite Protection Hardened Light Armor Plating Weapon Particle Cannon Energy Gun Spread Laser Energy Cannon Particle Cannon Ballistic Gun Flak Gun Ballistic Cannon Advanced Assault Cannon Launcher Missile Launcher Special Weapon CPS Tube Impact Weapon Impact Mace Slashing Weapon Chainsword Special Melee Weapon Datajack Build | -11 -10 -10 -9 -9 -8 -7 -7 -7 -7 ------- Run | Yrd Mat Min Mat Min Mat Fac Sto Rec Scr Slots Evolved 6 | . . . 2 . 2 2 . . . Power . | . . . . . . . . . . Propulsion 2 | . . . 1 . . 1 . . . Utility 3 | . . . 1 . 1 1 . . . Weapon 1 | . . . . . 1 . . . . Parts Attached 192 | 8 15 3 21 6 77 5 19 19 19 Power 14 | 1 2 . 2 . 6 . 2 . 1 Engine 9 | 1 2 . 2 . 4 . . . . Core 5 | . . . . . 2 . 2 . 1 Reactor . | . . . . . . . . . . Propulsion 49 | 2 1 . 7 2 15 4 8 6 4 Treads 23 | . 1 . 6 . 6 1 4 1 4 Leg . | . . . . . . . . . . Wheel 26 | 2 . . 1 2 9 3 4 5 . Hover . | . . . . . . . . . . Flight . | . . . . . . . . . . Utility 41 | 2 5 . 4 3 15 1 . 8 3 Device 15 | 1 2 . 1 2 3 1 . 5 . Storage 3 | 1 1 . 1 . . . . . . Processor 1 | . . . . . 1 . . . . Hackware 2 | . . . . . 2 . . . . Protection 20 | . 2 . 2 1 9 . . 3 3 Artifact . | . . . . . . . . . . Weapon 88 | 3 7 3 8 1 41 . 9 5 11 Energy Gun 18 | 2 4 1 4 . 6 . 1 . . Energy Cannon 30 | . . . 2 . 19 . 4 2 3 Ballistic Gun 8 | 1 3 1 1 . 1 . . 1 . Ballistic Cannon 6 | . . . . . 3 . . 1 2 Launcher 14 | . . 1 . . 9 . 2 . 2 Special Weapon 1 | . . . . . . . . . 1 Impact Weapon 2 | . . . . . . . 1 . 1 Slashing Weapon 6 | . . . 1 1 3 . 1 . . Piercing Weapon . | . . . . . . . . . . Special Melee Weapon 3 | . . . . . . . . 1 2 Unidentified Prototypes 5 | . . . . . 2 . 3 . . Parts Lost 48 | . 2 . 6 . 15 . 3 2 20 Power 4 | . 1 . . . 2 . . . 1 Propulsion 19 | . 1 . 2 . 6 . 2 . 8 Utility 11 | . . . 1 . 4 . . 1 5 Weapon 14 | . . . 3 . 3 . 1 1 6 Highest Loss Streak 17 | . 1 . 6 . 7 . 1 2 17 To Critical Strikes . | . . . . . . . . . . Average Slot Usage (%) 98 | . 99 100 99 100 97 98 99 99 98 Engine 5 | . 13 14 11 11 5 7 1 . . Core 3 | . . . . . 3 . 5 7 6 Treads 11 | . 2 14 28 17 10 11 13 7 . Wheel 17 | . 25 14 4 15 14 17 16 22 28 Device 10 | . 7 14 10 11 8 14 15 11 6 Storage 9 | . 14 14 11 11 9 7 7 7 7 Processor 4 | . . . . . 4 7 7 7 7 Hackware 3 | . . . . . 1 7 7 7 6 Protection 6 | . 6 . 10 10 10 . . 2 6 Energy Gun 3 | . 18 19 6 . 2 . . . . Energy Cannon 10 | . . . 12 14 13 15 15 12 6 Ballistic Gun 3 | . 9 8 1 . . . . 3 6 Ballistic Cannon 1 | . . . . . 2 . . 4 . Slashing Weapon 2 | . . . . 7 6 7 3 . . Special Melee Weapon 1 | . . . . . . . . 1 6 Peak Build Rating 52 | 7 13 13 20 21 35 41 48 52 45 Average Rating 29 | 5 9 12 18 20 27 40 45 45 38 On Entrance 23 | . 7 13 13 19 21 35 40 46 38 Naked Turns . | . . . . . . . . . . Heaviest Build 121 | 13 34 32 99 99 115 109 113 121 116 Greatest Support 62 | 26 26 16 60 60 62 58 58 58 58 Greatest Overweight (x) 10 | . 2 1 9 3 10 5 4 4 7 Average Overweight (x) 2 | . . 1 1 2 5 3 2 2 1 Largest Inventory Capacity 25 | 8 15 15 25 25 25 25 25 25 25 Average Capacity 23 | 7 13 15 23 25 25 25 25 25 25 Most Carried 25 | 5 15 15 25 25 25 25 25 25 25 Average Carried 22 | 3 10 15 20 25 23 24 24 24 24 Final Capacity 25 | 8 15 15 25 25 25 25 25 25 25 Final Carried 25 | 5 15 15 25 25 25 25 25 25 16 Class Distribution -------------------- 61% | Scavenger-Mutant 18% | Mutant 6% | Scavenger-Tank 6% | Scavenger-Skirmisher 5% | Scavenger-Gunner Dominant Class ---------------- Mutant | -10/Materials Mutant | -10/Mines Scavenger-Mutant | -9/Materials Scavenger-Mutant | -9/Mines Scavenger-Mutant | -8/Materials Scavenger-Mutant | -7/Factory Scavenger-Mutant | -7/Storage Scavenger-Skirmisher | -7/Recycling Scavenger-Mutant | -7/Scraptown Resources | -11 -10 -10 -9 -9 -8 -7 -7 -7 -7 ----------- Run | Yrd Mat Min Mat Min Mat Fac Sto Rec Scr Matter Collected 3198 | 286 331 40 326 60 1335 70 232 259 259 Remotely . | . . . . . . . . . . Salvage Created 6597 | 110 473 10 999 117 2090 317 1014 1054 413 Parts 309 | 5 45 8 51 5 102 8 37 34 14 Haulers Intercepted 10 | . 2 . 3 . 4 . 1 . . Recyclers Shooed 10 | . . . . . 5 1 . 4 . Parts Field Recycled . | . . . . . . . . . . Retrieved Matter . | . . . . . . . . . . Parts Self-Destructed . | . . . . . . . . . . Prevented . | . . . . . . . . . . Kills | -11 -10 -10 -9 -9 -8 -7 -7 -7 -7 ------- Run | Yrd Mat Min Mat Min Mat Fac Sto Rec Scr Combat Hostiles Destroyed 111 | . 14 3 19 3 43 . 16 3 10 Melee 9 | . . . . . 9 . . . . Guns 32 | . 13 . 14 . 2 . 1 . 2 Cannons 42 | . . . 5 3 16 . 11 3 4 AOE 27 | . 1 3 . . 16 . 3 . 4 Classes Destroyed 19 | 2 5 . 4 . 5 . . . 3 Worker 13 | . . . 4 . 8 . 1 . . Builder 3 | . . . . . 2 . 1 . . Tunneler 2 | 2 . . . . . . . . . Hauler 10 | . 2 . 3 . 4 . 1 . . Recycler 25 | 1 1 . 1 . 5 4 2 11 . Operator 4 | . 1 . . . 2 . 1 . . Watcher 6 | . 1 . 1 . 4 . . . . Swarmer 25 | . 6 3 4 . 12 . . . . Grunt 49 | . 8 . 8 3 21 . 9 . . Brawler 1 | . . . 1 . . . . . . Duelist 2 | . . . 1 . . . 1 . . Protector 1 | . . . . . 1 . . . . Sentry 18 | . . . 5 . 5 . 5 3 . Specialist 2 | . . . . . 2 . . . . Hunter 2 | . . . . . 1 . 1 . . Heavy 1 | . . . . . 1 . . . . Explorer 2 | . . . . . . . . . 2 Guru 2 | . . . . . . . . . 2 Scrapper 6 | . . . . . . . . . 6 Best Kill Streak 15 | 3 5 3 8 3 15 2 6 3 8 Combat Bots Only 11 | . 4 3 7 3 11 . 5 1 8 Max Kills in Single Turn 3 | 1 3 2 2 1 3 1 1 2 1 Gunslinging 1 | . . . 1 . . . . . . Exploded 3 | . 1 2 . . 3 . 1 . 1 Melee 1 | . . . . . 1 . . . . Uniques/NPCs Destroyed . | . . . . . . . . . . Combat | -11 -10 -10 -9 -9 -8 -7 -7 -7 -7 -------- Run | Yrd Mat Min Mat Min Mat Fac Sto Rec Scr Hostile Shots Fired 727 | . 66 12 103 11 232 9 116 90 88 Missed 192 | . 16 3 28 4 61 2 36 20 22 Damage Taken 8740 | . 488 117 999 102 2610 50 921 503 2950 Core 1425 | . 111 6 171 . 435 16 94 27 565 Absorbed by Shields . | . . . . . . . . . . Ignored by Resistances 20 | . . . . . . . . 18 2 Core Remaining (%) 57 | 100 . 53 . 57 20 . . . . Volleys Fired 365 | 9 48 2 60 8 103 9 53 32 41 Largest 3 | 2 2 1 2 2 3 2 3 3 3 Hottest 225 | 80 130 30 136 136 220 160 225 225 173 Shots Fired 694 | 18 83 2 110 14 189 18 109 78 73 Gun 241 | 18 83 . 79 . 39 . 3 . 19 Cannon 411 | . . . 31 14 124 18 102 78 44 Launcher 40 | . . 2 . . 26 . 4 . 8 Special 2 | . . . . . . . . . 2 Kinetic 147 | 6 34 . 26 . 33 . . 9 39 Thermal 486 | 12 49 . 84 14 114 18 102 69 24 Explosive 40 | . . 2 . . 26 . 4 . 8 Electromagnetic 19 | . . . . . 16 . 3 . . Robot Hit Streak 29 | 12 9 1 28 21 20 5 29 8 9 Robot Miss Streak 7 | 1 6 . 4 . 4 3 3 6 7 Penetration Max . | . . . . . . . . . . Secondary Targets 4 | . 1 . 3 . . . . . . Max Gunslinging Chain 1 | . 1 . 1 . . . . . . Shots Hit Robots 493 | 14 56 1 91 12 144 9 72 45 49 Core Hits 324 | 4 58 3 61 4 99 3 39 18 35 Critical Kills 2 | . . . . . . 1 1 . . Critical Parts Destroyed 1 | . . . . . 1 . . . . Critical Strikes 12 | . . . 3 . 6 1 1 . 1 Burn 3 | . . . 3 . . . . . . Meltdown 2 | . . . . . . 1 1 . . Destroy 1 | . . . . . 1 . . . . Blast 1 | . . . . . . . . . 1 Corrupt 1 | . . . . . 1 . . . . Sever 4 | . . . . . 4 . . . . Melee Attacks 52 | . . . 1 . 44 . 1 2 4 Impact 1 | . . . . . . . 1 . . Slashing 45 | . . . 1 . 44 . . . . Piercing . | . . . . . . . . . . Sneak Attacks 13 | . . . . . 7 . . 2 4 Combat Hostiles . | . . . . . . . . . . Follow-up Attacks . | . . . . . . . . . . Damage Inflicted 14594 | 153 867 174 1443 269 6119 236 2286 1217 1830 Guns 2482 | 153 588 . 904 . 471 . 57 . 309 Cannons 6535 | . . . 500 269 1686 236 1833 1217 794 Explosions 4382 | . 279 174 . . 2806 . 396 . 727 Melee 1156 | . . . . . 1156 . . . . Ramming 39 | . . . 39 . . . . . . Kinetic 1767 | 50 135 . 166 . 358 . . 199 859 Thermal 6955 | 103 453 . 1238 269 1561 236 1833 1018 244 Explosive 4382 | . 279 174 . . 2806 . 396 . 727 Electromagnetic 295 | . . . . . 238 . 57 . . Impact . | . . . . . . . . . . Slashing 1156 | . . . . . 1156 . . . . Piercing . | . . . . . . . . . . Highest Corruption 1 | . . . . . . . . . 1 Average Corruption 1 | . . . . . . . . . 1 Corruption Purged . | . . . . . . . . . . Corruption Blocked . | . . . . . . . . . . Effects 3 | . . . . . . . . . 3 Message Errors 1 | . . . . . . . . . 1 Matter Fused 1 | . . . . . . . . . 1 Misfires 1 | . . . . . . . . . 1 Overload Shots . | . . . . . . . . . . Overflow Damage 320 | . 18 5 7 . 216 1 11 18 44 Projectiles 64 | . . . 7 . 7 1 7 18 24 Explosions 140 | . 18 5 . . 93 . 4 . 20 Melee 116 | . . . . . 116 . . . . Knockbacks 4 | . . . 1 . . . . 3 . Impact 1 | . . . 1 . . . . . . Kinetic 2 | . . . . . . . . 2 . Secondary 1 | . . . . . . . . 1 . Self-Inflicted Damage 164 | . . 52 12 . 73 . 10 . 17 Shots 5 | . . 2 . . 1 . 1 . 1 Rammed 4 | . . . 4 . . . . . . Targets Rammed 5 | . . . 5 . . . . . . Kicked . | . . . . . . . . . . Crushed 1 | . . . 1 . . . . . . Highest Temperature 444 | 54 243 . 270 295 361 43 57 444 84 Average Temperature 96 | 27 79 . 76 168 111 33 23 135 41 Received Heat Transfer 2385 | . 150 . 330 60 810 12 396 144 483 Effects 15 | . . . . 1 6 . . 8 . Shutdowns 1 | . . . . . . . . 1 . Energy Bleed 1 | . . . . 1 . . . . . Interference 13 | . . . . . 6 . . 7 . Siege Activations . | . . . . . . . . . . Robots Corrupted . | . . . . . . . . . . Combat Hostiles . | . . . . . . . . . . Parts Fried 1 | . . . . . 1 . . . . Impact Corruptions . | . . . . . . . . . . Robots Melted 2 | . . . . . . 1 1 . . Combat Hostiles 1 | . . . . . . . 1 . . Parts Melted 31 | 1 . . 4 . 6 1 9 8 2 Heat Transferred 12313 | 225 655 . 2446 444 2698 450 3320 1729 346 Parts Sabotaged . | . . . . . . . . . . Parts Stolen . | . . . . . . . . . . Parts Stripped . | . . . . . . . . . . Power Chain Reactions . | . . . . . . . . . . Alert | -11 -10 -10 -9 -9 -8 -7 -7 -7 -7 ------- Run | Yrd Mat Min Mat Min Mat Fac Sto Rec Scr Peak Influence 1027 | 15 340 151 234 92 1027 388 621 393 . Initial 326 | . 9 37 58 22 35 326 176 241 . Average 321 | 4 188 149 88 76 658 346 306 204 . Maximum Alert Level 3 | . 1 . 1 . 3 1 2 1 . Low Security (%) 42 | 100 56 100 87 100 3 . 15 45 . Level 1 29 | . 43 . 12 . 13 100 59 54 . Level 2 14 | . . . . . 39 . 24 . . Level 3 13 | . . . . . 44 . . . . Level 4 . | . . . . . . . . . . Level 5 . | . . . . . . . . . . High Security . | . . . . . . . . . . Max Security . | . . . . . . . . . . Squads Dispatched 12 | . 2 . . . 7 1 2 . . Investigation 3 | . 1 . . . 2 . . . . Extermination . | . . . . . . . . . . Reinforcement 8 | . 1 . . . 4 1 2 . . Assault 1 | . . . . . 1 . . . . Garrison . | . . . . . . . . . . Intercept . | . . . . . . . . . . Searches Triggered . | . . . . . . . . . . Construction Impeded 2 | . . . . . 1 . 1 . . Haulers Reinforced . | . . . . . . . . . . Active Scanning Responses . | . . . . . . . . . . Cargo Convoy Interrupts . | . . . . . . . . . . Stealth | -11 -10 -10 -9 -9 -8 -7 -7 -7 -7 --------- Run | Yrd Mat Min Mat Min Mat Fac Sto Rec Scr Distress Signals 5 | . 1 . 2 . 2 . . . . Communications Jammed . | . . . . . . . . . . Distress Signals . | . . . . . . . . . . Times Spotted 157 | . 22 6 30 3 61 2 19 3 11 Peak Tracking Total 11 | . 4 3 11 3 10 1 5 1 7 Tactical Retreats 9 | . . . . . 7 . 2 . . Traps | -11 -10 -10 -9 -9 -8 -7 -7 -7 -7 ------- Run | Yrd Mat Min Mat Min Mat Fac Sto Rec Scr Traps Triggered 5 | . 3 . 1 . . . 1 . . Indirectly . | . . . . . . . . . . Trap Hack Attempts . | . . . . . . . . . . Triggered . | . . . . . . . . . . Disarmed . | . . . . . . . . . . Reprogrammed . | . . . . . . . . . . Reused . | . . . . . . . . . . Traps Extracted . | . . . . . . . . . . Installed . | . . . . . . . . . . Triggered . | . . . . . . . . . . Machines | -11 -10 -10 -9 -9 -8 -7 -7 -7 -7 ---------- Run | Yrd Mat Min Mat Min Mat Fac Sto Rec Scr Machines Disabled 22 | . 2 1 1 . 7 . 6 1 4 Max in Single Turn 2 | . 2 1 1 . 1 . 1 1 2 Garrison Access 2 | . . . . . . 1 1 . . Machines Repaired . | . . . . . . . . . . Machines Dismantled . | . . . . . . . . . . Machines Sabotaged . | . . . . . . . . . . Overloaded Fab Kills . | . . . . . . . . . . Hacking | -11 -10 -10 -9 -9 -8 -7 -7 -7 -7 --------- Run | Yrd Mat Min Mat Min Mat Fac Sto Rec Scr Machines Accessed 39 | . 6 . 8 . 5 3 5 7 5 Terminals 26 | . 6 . 7 . 5 2 4 2 . Fabricators . | . . . . . . . . . . Repair Stations . | . . . . . . . . . . Recycling Units 3 | . . . . . . . . 3 . Scanalyzers 1 | . . . 1 . . . . . . Garrison Access 2 | . . . . . . 1 1 . . Total Hacks 131 | . 12 . 23 . 12 6 14 30 34 Successful 96 | . 6 . 14 . 5 3 7 27 34 Failed 33 | . 5 . 8 . 7 3 7 3 . Catastrophic 7 | . . . . . 2 2 2 1 . Database Lockouts 2 | . 1 . 1 . . . . . . Manual 54 | . 11 . 15 . 12 1 9 6 . Terminals 65 | . 12 . 21 . 12 5 12 3 . Fabricators . | . . . . . . . . . . Repair Stations . | . . . . . . . . . . Recycling Units 3 | . . . . . . . . 3 . Scanalyzers 2 | . . . 2 . . . . . . Garrison Access 3 | . . . . . . 1 2 . . Terminal Hacks 75 | . 3 . 7 . 3 1 3 24 34 Record 58 | . . . . . . . . 24 34 Robot Analysis 5 | . 1 . 3 . . 1 . . . Prototype ID Bank 1 | . . . 1 . . . . . . Open Door 1 | . . . . . . . 1 . . Branch Access Points 2 | . . . 1 . 1 . . . . Terminal Index 1 | . . . . . . . 1 . . Unreport Threat 4 | . 1 . 1 . 2 . . . . Locate Traps 3 | . 1 . 1 . . . 1 . . Fabricator Hacks . | . . . . . . . . . . Repair Station Hacks . | . . . . . . . . . . Recycling Unit Hacks . | . . . . . . . . . . Scanalyzer 2 | . . . 2 . . . . . . Insert Component 1 | . . . 1 . . . . . . Analyze 1 | . . . 1 . . . . . . Garrison Access Hacks 2 | . . . . . . 1 1 . . Seal Access 2 | . . . . . . 1 1 . . Unauthorized Hacks 17 | . 3 . 5 . 2 1 3 3 . Terminals 14 | . 3 . 5 . 2 1 3 . . Track 1 | . . . 1 . . . . . . Botnet 11 | . 3 . 3 . 2 1 2 . . Operators 2 | . . . 1 . . . 1 . . Fabricators . | . . . . . . . . . . Repair Stations . | . . . . . . . . . . Recycling Units 3 | . . . . . . . . 3 . Tunnel 3 | . . . . . . . . 3 . Scanalyzers . | . . . . . . . . . . Garrison Access . | . . . . . . . . . . Data Cores Recovered 1 | . . . . . . . 1 . . Used . | . . . . . . . . . . Hacking Detections 24 | . 5 . 5 . 5 2 5 2 . Full Trace Events 2 | . . . . . 2 . . . . Feedback Events . | . . . . . . . . . . Feedback Blocked . | . . . . . . . . . . Robot Schematics Acquired . | . . . . . . . . . . Robots Built . | . . . . . . . . . . Authchips . | . . . . . . . . . . Time . | . . . . . . . . . . Total Robot Build Rating . | . . . . . . . . . . Part Schematics Acquired 1 | . . . 1 . . . . . . Parts Built . | . . . . . . . . . . Authchips . | . . . . . . . . . . Time . | . . . . . . . . . . Total Part Build Rating . | . . . . . . . . . . Parts Repaired . | . . . . . . . . . . Time . | . . . . . . . . . . Parts Recycled . | . . . . . . . . . . Recycled Matter . | . . . . . . . . . . Retrieved Matter . | . . . . . . . . . . Retrieved Components . | . . . . . . . . . . Parts Scanalyzed 1 | . . . 1 . . . . . . Part Schematics Acquired 1 | . . . 1 . . . . . . Parts Damaged . | . . . . . . . . . . Bothacking | -11 -10 -10 -9 -9 -8 -7 -7 -7 -7 ------------ Run | Yrd Mat Min Mat Min Mat Fac Sto Rec Scr Used RIF Installer . | . . . . . . . . . . Robots Hacked 6 | . . . . . . . . 2 4 Non-combat 1 | . . . . . . . . 1 . Combat 5 | . . . . . . . . 1 4 Robot Hacks Applied 6 | . . . . . . . . 2 4 parse_system 6 | . . . . . . . . 2 4 Relay Couplers Released . | . . . . . . . . . . Fabnet Peak Effective % . | . . . . . . . . . . Robots Rewired . | . . . . . . . . . . Allies Hacked . | . . . . . . . . . . Hacks Repelled . | . . . . . . . . . . Allies | -11 -10 -10 -9 -9 -8 -7 -7 -7 -7 -------- Run | Yrd Mat Min Mat Min Mat Fac Sto Rec Scr Total Allies . | . . . . . . . . . . Largest Group . | . . . . . . . . . . Highest-Rated Group . | . . . . . . . . . . Highest-Rated Ally . | . . . . . . . . . . Total Orders . | . . . . . . . . . . Ally Attacks . | . . . . . . . . . . Total Damage . | . . . . . . . . . . Kills . | . . . . . . . . . . Allies Corrupted . | . . . . . . . . . . Allies Melted . | . . . . . . . . . . Intel | -11 -10 -10 -9 -9 -8 -7 -7 -7 -7 ------- Run | Yrd Mat Min Mat Min Mat Fac Sto Rec Scr Robot Analysis Total 5 | . 1 . 3 . . 1 . . . Derelict Logs Recovered 1 | . . 1 . . . . . . . Drone Launches . | . . . . . . . . . . Drone Recoveries . | . . . . . . . . . . Exploration | -11 -10 -10 -9 -9 -8 -7 -7 -7 -7 ------------- Run | Yrd Mat Min Mat Min Mat Fac Sto Rec Scr Turns Passed 9380 | 94 653 311 1585 363 2338 335 779 1339 1583 Spaces Moved 5379 | 59 430 233 662 219 1019 206 344 914 1293 Core 3 | 3 . . . . . . . . . Treads 477 | . . . 405 27 38 . 6 1 . Legs . | . . . . . . . . . . Wheels 4899 | 56 430 233 257 192 981 206 338 913 1293 Hover . | . . . . . . . . . . Flight . | . . . . . . . . . . Fastest Speed 50 | 50 90 115 130 135 135 110 110 110 110 Average Speed 138 | 87 104 115 198 147 163 142 146 127 111 Slowest Speed 480 | 90 130 115 240 240 235 155 465 480 205 Overloaded Moves . | . . . . . . . . . . Propulsion Burnouts . | . . . . . . . . . . Robots Hopped . | . . . . . . . . . . Cave-ins Triggered . | . . . . . . . . . . Exploration Rate (%) 56 | 4 83 61 55 54 79 6 63 96 60 Regions Visited 9 Branch Regions 5 Pre-discovered Areas 4 | . . 1 . . . . . 3 . Known Exits Taken 5 | . . . 1 . 1 1 1 1 . Unknown Exits Taken 4 | 1 1 1 . 1 . . . . . Scrap Searched 5 | . . 1 . 1 . . . . 3 Spaces Dug 33 | . . 16 . . 8 . 4 . 5 Terrain Destroyed 347 | . 5 19 . . 206 . 35 29 53 Melee 6 | . . . . . 6 . . . . Projectile 80 | . . . . . 22 . 19 29 10 AOE 261 | . 5 19 . . 178 . 16 . 43 Terrain Rammed . | . . . . . . . . . . Walls Destroyed . | . . . . . . . . . . Machines Disabled . | . . . . . . . . . . Actions | -11 -10 -10 -9 -9 -8 -7 -7 -7 -7 --------- Run | Yrd Mat Min Mat Min Mat Fac Sto Rec Scr Total 6579 | 80 555 273 825 245 1445 230 527 1030 1369 Wait 345 | . 45 34 30 8 141 4 61 16 6 Move 5370 | 58 429 232 661 218 1018 205 343 913 1293 Hop . | . . . . . . . . . . Pick Up 128 | 5 14 1 30 2 29 4 18 23 2 Fast Attach 28 | 7 4 . 3 . 5 . 5 . 4 Attach 42 | . 2 . 6 . 15 2 4 2 11 Detach 3 | . . . . . 2 . 1 . . Swap 123 | 1 9 3 12 6 57 3 10 17 5 Drop 110 | . 4 1 17 3 31 3 23 25 3 Fire 365 | 9 48 2 60 8 103 9 53 32 41 Melee 52 | . . . 1 . 44 . 1 2 4 Ram 1 | . . . 1 . . . . . . Kick . | . . . . . . . . . . Crush 4 | . . . 4 . . . . . . Escape Stasis 8 | . . . . . . . 8 . . Rewire . | . . . . . . . . . . Trap . | . . . . . . . . . . Miscellaneous . | . . . . . . . . . . Route ------- -11/Scrapyard -10/Materials (discovered 4 exits: *Mat x2 / [*Min x2]) -10/Mines -9/Materials (discovered 3 exits: *Mat / *Min x2) -9/Mines -8/Materials (discovered 3 exits: *Fac x3) -7/Factory (discovered 2 exits: *Fac / *Sto) -7/Storage -7/Recycling (discovered 2 exits: *Fac / *Scr) -7/Scraptown (discovered 1 exit: *Fac) History --------- Turn | Location | Event 5 | -11/Scrapyard | Discovered new exit (range 15) 95 | -11/Scrapyard | Entered Materials 189 | -10/Materials | Discovered new exit (range 9) 332 | -10/Materials | Build established: Mutant 367 | -10/Materials | Discovered new exit (range 15) 499 | -10/Materials | Discovered new exit (range 13) 677 | -10/Materials | Discovered new exit (range 16) 693 | -10/Materials | Central database locked down 748 | -10/Materials | Entered Mines 871 | -10/Mines | Assembled infested the area 876 | -10/Mines | Assisted by a Guerilla fighting off Assembled 969 | -10/Mines | Found a damaged Exp. Sensor Array with a note attached 972 | -10/Mines | Found Prototype Device 987 | -10/Mines | Learned location of Zion (-7) 1044 | -10/Mines | Discovered new exit (range 13) 1059 | -10/Mines | Entered Materials 1059 | -9/Materials | Evolved 2 slots: Propulsion x1, Utility x1 1098 | -9/Materials | Central database locked down 1163 | -9/Materials | Identified exit to Mines 1545 | -9/Materials | Lost 6 parts (2n1u3w) 1549 | -9/Materials | Destroyed 7 combat bots 2238 | -9/Materials | Build established: Scavenger-Mutant 2248 | -9/Materials | Identified Exp. Sensor Array 2354 | -9/Materials | Discovered new exit (range 8) 2644 | -9/Materials | Entered Mines 2756 | -9/Mines | Received a Rocket Launcher from a helpful Derelict 2768 | -9/Mines | Deemed a non-threat by the Exiles lab entrance 2963 | -9/Mines | Discovered new exit (range 7) 3007 | -9/Mines | Entered Materials 3007 | -8/Materials | Evolved 2 slots: Utility x1, Weapon x1 3130 | -8/Materials | Destroyed 11 combat bots 3143 | -8/Materials | Lost 6 parts (1p3n2u) 3395 | -8/Materials | Lost 7 parts (1p3n1u2w) 3618 | -8/Materials | Discovered new exit (range 11) 3923 | -8/Materials | Discovered new exit (range 8) 3964 | -8/Materials | Build established: Scavenger-Tank 4065 | -8/Materials | Core integrity fell below 50% 4149 | -8/Materials | Identified exit to Factory 4336 | -8/Materials | Discovered exit to Factory (range 16) 4530 | -8/Materials | Build established: Scavenger-Mutant 4607 | -8/Materials | First assault squad dispatched 4695 | -8/Materials | Destroyed 7 combat bots 5345 | -8/Materials | Entered Factory 5345 | -7/Factory | Evolved 2 slots: Propulsion x1, Utility x1 5560 | -7/Factory | Discovered new exit (range 6) 5599 | -7/Factory | Identified exit to Factory 5674 | -7/Factory | Discovered new exit (range 5) 5679 | -7/Factory | Identified exit to Storage 5680 | -7/Factory | Entered Storage 6452 | -7/Storage | Used back door to open Recycling access 6452 | -7/Storage | Discovered new exit (range 5) 6456 | -7/Storage | Identified exit to Recycling 6459 | -7/Storage | Entered Recycling 6780 | -7/Recycling | Build established: Scavenger-Skirmisher 6795 | -7/Recycling | Discovered new exit (range 14) 6811 | -7/Recycling | Identified exit to Factory 7390 | -7/Recycling | Scanned before Scraplab entrance 7401 | -7/Recycling | Build established: Scavenger-Gunner 7675 | -7/Recycling | Entered Scraplab 7710 | -7/Recycling | Discovered new exit (range 3) 7711 | -7/Recycling | Identified exit to Scraptown 7748 | -7/Recycling | Found SUBCON Basin 7798 | -7/Recycling | Entered Scraptown 7807 | -7/Scraptown | Build established: Scavenger-Mutant 8033 | -7/Scraptown | Visited CPS Storage 8080 | -7/Scraptown | Visited Shadow of the Wyrm 8100 | -7/Scraptown | Visited Cyclists 8159 | -7/Scraptown | Visited UFD Registry 8179 | -7/Scraptown | Visited Symbiants 8567 | -7/Scraptown | Discovered exit to Factory (range 3) 8878 | -7/Scraptown | Visited Observation Area 8923 | -7/Scraptown | Visited Red Mages 8957 | -7/Scraptown | Found Relay Coupler [Proto] 9098 | -7/Scraptown | Visited Artisan Demo Area 9176 | -7/Scraptown | Attacked by Scraptown defenders 9179 | -7/Scraptown | Entered Cyclist Reading Room 9283 | -7/Scraptown | Lost 3 parts (2n1w) 9283 | -7/Scraptown | Found Scrap Suit 9287 | -7/Scraptown | Destroyed 8 combat bots 9356 | -7/Scraptown | Core integrity fell below 50% 9374 | -7/Scraptown | Core integrity fell below 20% 9381 | -7/Scraptown | Destroyed by Triborg with Siege Cannon Last Messages --------------- 09359_ Siege Slug penetrates Machine. 09359_ Machine disabled. 09361_ Penetrated by Siege Slug. 09363_ Mak. Microdissipator Network melted. 09363_ Lgt. Deuterium Engine melted. 09363_ HS-KDT(j) destroyed. 09363_ Penetrated by Siege Slug. 09367_ Assault Cannon destroyed. 09367_ Adv. Assault Cannon destroyed. 09369_ Penetrated by Siege Slug. 09369_ Med. Treads destroyed. 09371_ Penetrated by Siege Slug. 09373_ Lgt. Treads destroyed. 09373_ Plasma Cannon destroyed. 09375_ Penetrated by Siege Slug. 09379_ Med. Treads destroyed. 09379_ Knocked back. 09381_ The unstable cave ceiling collapses. 09381_ Penetrated by Siege Slug. 09381_ Hvy. Missile Launcher destroyed. Map ----- +----------------------------------------------------+ | | | | | | | | | | | | | | | | | | | | | | | | | | | | | ?????????????????????????????????????????????????? | | ????????#########???????????????#########????????? | | ????????#"""""""#???????????????#"" ##???????? | | ?########" "#???????????????#" < ######### | | ?# """ "#???#########???#"" ###""""""" | | ?# ######" """ "#???#"""""""#???##### #?#" | | ?# #????#" " "#???#"" ""#???????# ###" | | ?# #????#" ;#??# ""#???????# | | ?# #??###""" """;;; #" ""##??????# # "" | | ## #### # ; " ######## # # | | "" """" ###" =% % #" "" | | " """" [%@ = | | "" """ % *! [ % =! ! = | | """ % %! % | | """ " ###### ## ;; # # "# | | "" " ###### ## #####;TT% ## | | """"""" #""""" """""#####?# #######? | | ####### #" " " #?# """"""""#? | | ??????### #""" ""#" " " "### ### " ""#? | | ????????# #""" "#" " " "#"" """ "#? | | ????????# #""" "#""""" """""#" """ " ""#? | | ????????# #"" "###### ######" " """"""""#? | | ????????# #" "#""""" """""#" ##"""####? | | ????????# #""" ""#" " " "#" "" " ######???? | | ????????# #### ###" " " "#" " #???###### | | ????????# #??# " " "#"""""" #???# # # | | ????????# #??#####""""" """""####### #??## " " | | ???????## ##?????###### ######?????# #??#" | | ???????# ############ ############ #??# | | ???????# #??# | | ???????# #??# | | ???????# ######################### #??# | | ???????## ##??????????????????????# #??# | | ???###### ########???????????????### ########## | | "" """""" """""""#??????########## | | """""" " "#??????" " " " # | +----------------------------------------------------+ Best States ------------- Heat Dissipation 70 Energy Generation 18 Energy Capacity 300 Matter Stores 300 Matter Capacity 300 Sight Range 16 Robot Scan Range 20 Terrain Scan Density 10 Armor Coverage 375 Resistance: TH 10 Evasion (%) 42 Recoil Reduction 3 Offensive Hacking 10 Item Schematics ----------------- Exp. Sensor Array | -9/Materials | Scanalyzed Robot Schematics ------------------ None Fabricated ------------ Nothing Alien Tech Used ----------------- None Achievements -------------- None Challenges ------------ None Game ------ Seed MediumReactiveTorch Manual? 0 Play Time 01:44:57 Cumulative 1294.1 hours Start 2024.08.11 @ 04:39:24 End 2024.08.11 @ 06:29:39 Sessions 1 Manual Loads 0 Difficulty Rogue Special Mode None Game No. 463 Rogue 463 Adventurer 0 Explorer 0 Win Type - Total 28 Types 14/2/8/0/0/0/4/0/0 Lore% 63 Gallery% 86 Achievement% 85 Wizard Run 0 Options --------- Layout 1 ASCII 0 Keyboard 0 Movement Vi Keybinds 0 Fullscreen 0 Font 14/CherryShadow Map View 64x42 Zoom Use 0% Tactical HUD 1 Map Filters NONE Filters NONE Steam 1 RUN: bcfcc3ce-f443-4772-bae3-7f2514ab02f8